bitfinex-derivatives/quotes_SOLF0:USTF0_20241229
["timestamp","ask_amount","ask_price","bid_price","bid_amount"]
[1735510180004,1.5691,190.52,190.45,8.45240356]
[1735510180207,1.5691,190.52,190.47,2.6303]
[1735510182507,1.5691,190.52,190.45,8.45240356]
[1735510182508,1.5691,190.52,190.48,2.6302]
[1735510183506,4.1989,190.52,190.48,2.6303]
[1735510185711,4.1989,190.52,190.47,2.6303]
[1735510186106,8.45240356,190.51,190.47,2.6303]
[1735510187312,8.45240356,190.51,190.37,3.1718]
[1735510187313,8.45240356,190.48,190.38,8.45240356]
[1735510187510,8.45240356,190.46,190.38,8.45240356]
[1735510188611,8.45240356,190.46,190.41,2.6311]
[1735510189317,8.45240356,190.46,190.38,8.45240356]
[1735510189609,11.08300356,190.46,190.4,2.6314]
[1735510191413,11.08320356,190.44,190.39,2.6315]
[1735510191615,8.45240356,190.44,190.36,8.45240356]
[1735510193315,2.6311,190.42,190.37,2.6318]
[1735510193619,11.08350356,190.42,190.37,2.6318]
[1735510194214,8.45240356,190.42,190.34,3.04]
[1735510194416,8.45240356,190.42,190.37,2.6317]
[1735510194714,8.45240356,190.42,190.34,3.04]
[1735510194912,8.45240356,190.42,190.35,8.45240356]
[1735510195308,8.45240356,190.42,190.35,11.08440356]
[1735510195309,2.6313,190.41,190.35,11.08440356]
[1735510196910,8.45240356,190.4,190.34,3.04]
[1735510197107,3.04,190.44,190.34,3.04]
[1735510197311,3.04,190.44,190.35,8.45240356]
[1735510197511,8.45240356,190.42,190.35,8.45240356]
[1735510197715,8.45240356,190.4,190.35,8.45240356]
[1735510197910,8.45240356,190.4,190.36,2.6318]
[1735510198113,2.6311,190.42,190.36,2.6318]
[1735510198314,8.45240356,190.41,190.36,2.6318]
[1735510199512,11.08360356,190.41,190.35,8.45240356]
[1735510199709,11.08360356,190.41,190.35,11.08440356]
[1735510200510,2.6314,190.4,190.35,8.45240356]
[1735510200709,3.04,190.43,190.35,8.45240356]
[1735510200915,8.45240356,190.41,190.35,8.45240356]
[1735510201412,8.45240356,190.37,190.2,59.9281]
[1735510201614,8.45240356,190.35,190.29,8.45240356]
[1735510202410,2.632,190.36,190.31,8.45240356]
[1735510202815,2.632,190.36,190.31,11.08500356]
[1735510203220,2.6321,190.35,190.31,8.45240356]
[1735510203517,8.45240356,190.37,190.31,11.08500356]
[1735510204018,2.6319,190.36,190.31,11.08500356]
[1735510204219,8.45240356,190.37,190.31,2.6326]
[1735510204619,8.45240356,190.37,190.3,8.45240356]
[1735510205218,2.6322,190.34,190.3,2.6327]
[1735510206020,2.6323,190.33,190.29,2.6329]
[1735510207318,8.45240356,190.32,190.21,6.1504]
[1735510207623,8.45240356,190.28,190.22,1.5532]
[1735510207824,8.45240356,190.28,190.22,8.45240356]
[1735510208217,2.6328,190.3,190.23,2.6337]
[1735510208418,1.5402,190.33,190.23,2.6337]
[1735510208622,8.45240356,190.29,190.22,8.45240356]
[1735510208822,2.6331,190.28,190.22,11.08620356]
[1735510209016,11.49240356,190.29,190.22,8.45240356]
[1735510209525,8.45240356,190.27,190.22,8.45240356]
[1735510209925,8.45240356,190.27,190.2,8.45240356]
[1735510210230,8.45240356,190.23,190.14,4.554]
[1735510210419,8.45240356,190.21,190.12,3.04]
[1735510210618,8.45240356,190.21,190.09,3.1295]
[1735510210823,8.45240356,190.21,190.09,7.7555]
[1735510211119,14.12640356,190.21,190.14,2.6349]
[1735510211320,11.49240356,190.21,190.13,8.45240356]
[1735510211629,8.45240356,190.21,190.15,8.45240356]
[1735510211831,8.45240356,190.21,190.09,7.7555]
[1735510212020,8.45240356,190.19,190.09,7.7555]
[1735510212225,8.45240356,190.17,190.05,2.01412471]
[1735510212427,11.49240356,190.17,190.05,2.01412471]
[1735510212726,14.12690356,190.17,190.1,11.08780356]
[1735510212930,11.49240356,190.17,190.1,8.45240356]
[1735510213132,8.45240356,190.17,190.05,5.05412471]
[1735510213320,8.45240356,190.15,190.05,2.01412471]
[1735510213629,8.45240356,190.13,190.07,8.45240356]
[1735510214129,3.04,190.14,190.1,2.6355]
[1735510214625,1.5468,190.25,190.09,8.45240356]
[1735510214822,8.45240356,190.18,190.11,8.45240356]
[1735510215028,11.49240356,190.18,190.11,8.45240356]
[1735510215228,14.12680356,190.18,190.12,2.6352]
[1735510215530,8.45240356,190.16,190.09,8.45240356]
[1735510215731,8.45240356,190.16,190.11,2.6352]
[1735510215931,8.45240356,190.16,190.09,8.45240356]
[1735510216128,3.04,190.19,190.11,8.45240356]
[1735510216430,8.45240356,190.16,190.12,2.6352]
[1735510217231,1.5468,190.25,190.11,8.45240356]
[1735510217433,1.5468,190.25,190.08,3.0877]
[1735510217434,8.45240356,190.21,190.15,8.45240356]
[1735510217833,8.45240356,190.19,190.15,2.6348]
[1735510218033,8.45240356,190.17,190.11,8.45240356]
[1735510218230,8.45240356,190.15,190.09,8.45240356]
[1735510218433,8.45240356,190.12,190.08,4.1374]
[1735510218936,8.45240356,190.12,190.04,8.45240356]
[1735510219238,8.45240356,190.1,190.03,1.4919]
[1735510219437,8.45240356,190.1,190.03,9.94430356]
[1735510219737,8.45240356,190.1,190.05,2.636]
[1735510220236,8.45240356,190.1,188.53,51.76738056]
[1735510220237,8.45240356,190.06,189.99,15.49895939]
[1735510220433,1.6349,190.16,190.0,8.45240356]
[1735510220634,8.45240356,190.08,190.0,8.45240356]
[1735510221535,8.45240356,190.08,190.03,2.6363]
[1735510221736,8.45240356,190.08,190.0,8.45240356]
[1735510222132,8.45240356,190.06,189.99,15.49895939]
[1735510222333,8.45240356,190.06,189.99,23.95136295]
[1735510223444,8.45240356,190.06,190.01,2.6367]
[1735510224829,8.45240356,190.08,190.01,2.6367]
[1735510225035,2.6353,190.12,190.03,8.45240356]
[1735510225237,3.04,190.15,190.05,8.45240356]
[1735510225540,8.45240356,190.12,190.05,8.45240356]
[1735510225936,8.45240356,190.12,190.06,2.6359]
[1735510226136,66.47748741,190.17,190.07,8.45240356]
[1735510226329,8.45240356,190.15,190.09,8.45240356]
[1735510226533,8.45240356,190.15,190.09,11.08790356]
[1735510227530,8.45240356,190.15,190.08,3.04]
[1735510227531,8.45240356,190.18,190.11,8.45240356]
[1735510227743,8.45240356,190.2,190.13,8.45240356]
[1735510227934,8.45240356,190.2,190.13,11.49240356]
[1735510228338,13.30320457,190.22,190.13,3.04]
[1735510228538,2.634,190.2,190.13,5.6749]
[1735510228840,3.04,190.24,190.13,3.04]
[1735510229043,2.6337,190.23,190.17,2.6344]
[1735510229345,2.6337,190.23,190.13,16.34320457]
[1735510229739,2.6337,190.23,190.16,2.6345]
[1735510229939,2.6339,190.21,190.13,3.04]
[1735510230141,66.43771364,190.27,190.13,3.04]
[1735510230142,13.30320457,190.22,190.13,3.04]
[1735510230956,13.30320457,190.22,190.15,2.6347]
[1735510231241,13.30320457,190.19,190.12,3.1]
[1735510231638,13.30320457,190.19,190.09,4.6774]
[1735510231940,13.30320457,190.19,190.1,3.1]
[1735510232139,2.6347,190.16,190.1,5.7354]
[1735510232345,13.30320457,190.24,190.1,16.40320457]
[1735510232645,13.30320457,190.24,190.13,13.30320457]
[1735510233046,13.30320457,190.24,190.1,16.40320457]
[1735510233539,2.6339,190.21,190.1,16.40320457]
[1735510233947,13.30320457,190.21,190.1,16.40320457]
[1735510234143,13.30320457,190.21,190.1,3.1]
[1735510234344,13.30320457,190.18,190.1,3.1]
[1735510234840,13.30320457,190.14,190.01,13.30320457]
[1735510235039,13.30320457,190.14,190.02,7.799]
[1735510235443,13.30320457,190.11,190.06,2.6358]
[1735510235639,13.30320457,190.11,190.03,3.1]
[1735510235843,15.93850457,190.11,190.05,2.6361]
[1735510237145,15.93850457,190.11,190.06,2.6359]
[1735510237645,15.93850457,190.11,190.05,2.6361]
[1735510240548,15.93850457,190.11,190.04,3.1]
[1735510240549,2.6355,190.1,190.04,5.7362]
[1735510242248,13.30320457,190.11,190.04,3.1]
[1735510242445,2.6352,190.12,190.06,2.636]
[1735510242648,13.30320457,190.14,190.04,3.1]
[1735510242955,2.6353,190.11,190.05,2.6361]
[1735510243646,7.18405803,190.17,190.1,2.6354]
[1735510243853,7.18405803,190.16,190.1,2.6354]
[1735510244047,7.18405803,190.16,190.04,16.40320457]
[1735510244752,20.4872626,190.18,190.04,3.1]
[1735510245049,13.30320457,190.14,190.04,3.1]
[1735510245855,13.30320457,190.14,190.05,3.1]
[1735510246146,13.30320457,190.11,190.05,3.1]
[1735510246344,13.30320457,190.12,190.03,2.6363]
[1735510246748,2.6356,190.09,190.03,2.6363]
[1735510249746,2.6356,190.09,190.02,4.699]
[1735510249953,28.73623212,190.12,190.02,18.00220457]
[1735510250349,7.18405803,190.12,190.02,18.00220457]
[1735510250549,9.81915803,190.12,190.02,18.00220457]
[1735510250946,2.6351,190.12,190.05,2.6361]
[1735510251149,2.6351,190.12,190.02,18.00220457]
[1735510251844,28.73623212,190.14,190.02,18.00220457]
[1735510252050,2.635,190.13,190.02,18.00220457]
[1735510252254,7.18405803,190.14,190.05,13.30320457]
[1735510252452,7.18405803,190.14,190.06,3.1]
[1735510253251,9.81845803,190.17,190.06,3.1]
[1735510253454,9.81845803,190.17,190.11,2.6351]
[1735510253849,9.81845803,190.17,190.06,3.1]
[1735510253850,7.18405803,190.17,190.06,3.1]
[1735510254448,7.18405803,190.17,190.08,13.30320457]
[1735510254651,7.18405803,190.18,190.08,13.30320457]
[1735510255049,9.81835803,190.18,190.13,2.6348]
[1735510255553,16.40320457,190.21,190.13,2.6348]
[1735510255946,13.30320457,190.18,190.08,3.1]
[1735510257058,13.30320457,190.18,190.09,3.0086]
[1735510257254,2.6345,190.16,190.11,2.6351]
[1735510258961,2.6348,190.14,190.09,3.0086]
[1735510260555,2.6348,190.14,190.09,5.6441]
[1735510261952,13.30320457,190.15,190.02,1.6189]
[1735510262157,13.30320457,190.15,190.03,6.2258]
[1735510262658,13.30320457,190.15,190.04,3.08]
[1735510262856,13.30320457,190.15,190.05,3.08]
[1735510263254,2.6353,190.11,190.05,5.7159]
[1735510264060,2.6351,190.13,190.07,2.6357]
[1735510264259,7.18405803,190.16,190.05,3.08]
[1735510265255,13.30320457,190.13,190.07,2.6356]
[1735510265461,13.30320457,190.13,190.05,3.08]
[1735510266658,2.6353,190.11,190.06,2.6359]
[1735510267362,2.6356,190.09,190.05,3.08]
[1735510267555,28.73623212,190.16,190.04,3.08]
[1735510267556,13.30320457,190.1,190.04,3.08]
[1735510268060,2.6357,190.08,190.04,3.08]
[1735510268259,13.30320457,190.13,190.04,3.08]
[1735510268659,20.4872626,190.13,190.04,3.08]
[1735510268855,20.4872626,190.13,190.04,5.7162]
[1735510268856,2.6356,190.09,190.04,5.7162]
[1735510269663,20.4872626,190.13,190.04,5.7162]
[1735510269866,42.03943669,190.13,190.04,5.7162]
[1735510270164,13.30320457,190.1,190.04,3.08]
[1735510270356,2.6356,190.09,190.04,3.08]
[1735510270859,2.6356,190.09,190.03,5.7821]
[1735510271552,2.6359,190.07,190.03,3.1458]
[1735510272357,16.38320457,190.1,190.03,3.1458]
[1735510272358,2.6357,190.08,190.03,5.7821]
[1735510273062,2.6354,190.1,190.04,2.6361]
[1735510274061,3.08,190.11,190.04,2.6361]
[1735510274268,11.15763504,190.09,190.04,2.6361]
[1735510274857,8.52203504,190.07,190.04,2.6361]
[1735510275063,8.52203504,190.07,190.03,5.7821]
[1735510275467,8.52203504,190.07,190.03,3.1458]
[1735510275864,2.636,190.06,190.03,3.1458]
[1735510276162,8.52203504,190.07,190.03,3.1458]
[1735510276564,11.15793504,190.07,190.03,3.1458]
[1735510277562,11.15793504,190.07,190.01,2.6366]
[1735510277563,8.52203504,190.05,190.0,2.6367]
[1735510278764,8.52203504,190.05,189.99,15.49895939]
[1735510278962,8.52203504,190.05,190.01,2.6366]
[1735510279363,2.6361,190.06,190.01,2.6366]
[1735510280062,31.37163212,190.1,190.05,2.6361]
[1735510280765,7.18405803,190.13,190.06,8.52203504]
[1735510280969,15.70609307,190.13,190.08,8.52203504]
[1735510281164,15.70609307,190.13,190.06,3.08]
[1735510281359,15.70609307,190.13,190.06,11.60203504]
[1735510281563,8.52203504,190.11,190.06,14.23783504]
[1735510281764,8.52203504,190.11,190.06,5.7158]
[1735510282361,2.6352,190.12,190.06,5.7158]
[1735510283072,2.6354,190.1,190.06,3.08]
[1735510283272,13.31230784,190.11,190.05,1.5253]
[1735510284067,2.6356,190.09,190.03,2.6363]
[1735510284259,13.31230784,190.11,190.02,3.08]
[1735510284970,2.6358,190.07,190.02,3.08]
[1735510285863,13.31230784,190.11,190.02,3.08]
[1735510286266,13.31230784,190.11,190.02,5.7164]
[1735510286670,2.6358,190.08,190.02,5.7164]
[1735510287072,2.6358,190.07,190.02,5.7164]
[1735510287867,13.31230784,190.08,190.0,1.5485]
[1735510288170,16.39230784,190.08,190.0,1.5485]
[1735510289565,2.6363,190.04,190.0,1.5485]
[1735510289763,2.6363,190.04,189.99,15.49895939]
[1735510290164,28.73623212,190.1,189.99,15.49895939]
[1735510290374,7.18405803,190.09,190.0,13.31230784]
[1735510290573,7.18405803,190.09,190.0,14.92690784]
[1735510290775,7.18405803,190.09,190.05,2.636]
[1735510290979,7.18405803,190.09,190.02,3.06]
[1735510291176,7.18405803,190.12,190.03,13.31230784]
[1735510291471,7.18405803,190.12,190.03,14.92840784]
[1735510292375,2.6348,190.14,190.07,2.6357]
[1735510292677,42.04853996,190.16,190.07,3.06]
[1735510293174,20.49636587,190.16,190.07,3.06]
[1735510294081,42.04853996,190.16,190.07,3.06]
[1735510294471,13.31230784,190.13,190.07,3.06]
[1735510294678,13.31230784,190.1,190.04,3.06]
[1735510295570,15.94780784,190.1,190.04,3.06]
[1735510295776,13.31230784,190.13,190.04,3.06]
[1735510296180,28.73623212,190.12,190.04,3.06]
[1735510296882,2.6355,190.1,190.04,3.06]
[1735510298681,42.04853996,190.13,190.04,3.06]
[1735510299284,44.68363996,190.13,190.07,2.6358]
[1735510300181,42.04853996,190.13,190.04,3.06]
[1735510300377,28.73623212,190.13,190.04,3.06]
[1735510300885,7.18405803,190.13,190.04,3.06]
[1735510301480,20.49636587,190.16,190.09,2.6354]
[1735510301676,20.49636587,190.16,190.04,3.06]
[1735510301883,20.49636587,190.16,190.05,3.06]
[1735510302079,20.49636587,190.16,190.12,2.635]
[1735510302987,13.31230784,190.16,190.12,2.635]
[1735510303485,13.31230784,190.16,190.11,2.6352]
[1735510305091,13.31230784,190.16,190.12,2.6351]
[1735510305991,13.31230784,190.16,190.11,2.6352]
[1735510306386,13.31230784,190.16,190.12,2.6351]
[1735510309093,13.31230784,190.16,190.1,5.6953]
[1735510309292,13.31230784,190.16,190.1,3.06]
[1735510310290,2.6347,190.15,190.1,3.06]
[1735510310587,13.31230784,190.16,190.03,1.6161]
[1735510310789,13.31230784,190.1,190.06,2.6359]
[1735510311192,13.31230784,190.1,190.06,5.6959]
[1735510312686,13.31230784,190.1,190.07,2.6358]
[1735510313195,13.31230784,190.1,190.06,3.06]
[1735510315497,13.31230784,190.1,190.06,5.6959]
[1735510316197,8.52158234,190.09,190.06,5.6959]
[1735510316797,8.52158234,190.07,190.03,1.6161]
[1735510316996,8.52158234,190.07,190.03,4.6761]
[1735510317697,8.52158234,190.07,190.03,7.3124]
[1735510318799,8.52158234,190.1,190.06,2.6358]
[1735510320303,9.81895803,190.14,190.04,8.52158234]
[1735510320598,8.52158234,190.1,190.04,8.52158234]
[1735510321094,8.52158234,190.08,190.03,4.6761]
[1735510321496,28.73623212,190.18,190.04,8.52158234]
[1735510321796,8.52158234,190.12,190.04,8.52158234]
[1735510322000,8.52158234,190.1,190.04,8.52158234]
[1735510322194,13.31323073,190.13,190.03,4.6761]
[1735510322595,13.31323073,190.13,190.08,2.6357]
[1735510322893,13.31323073,190.13,190.05,3.06]
[1735510323095,2.6352,190.12,190.06,2.6359]
[1735510323695,13.31323073,190.13,190.09,2.6355]
[1735510324096,13.31323073,190.16,190.05,3.06]
[1735510324300,23.13188876,190.16,190.05,3.06]
[1735510324794,23.13188876,190.16,190.1,2.6353]
[1735510325402,15.94783073,190.16,190.1,2.6353]
[1735510326099,13.31323073,190.16,190.1,2.6353]
[1735510326307,2.6347,190.15,190.1,2.6353]
[1735510326902,15.94783073,190.16,190.11,2.6353]
[1735510327102,7.18405803,190.18,190.1,3.06]
[1735510327502,7.18405803,190.18,190.13,2.6349]
[1735510328201,37.49970482,190.19,190.1,3.06]
[1735510328202,28.73623212,190.19,190.16,2.6345]
[1735510328402,28.73623212,190.19,190.15,3.06]
[1735510328809,28.73623212,190.19,190.16,2.6346]
[1735510329205,28.73623212,190.19,190.15,3.06]
[1735510329513,28.73623212,190.22,190.18,2.6342]
[1735510329716,28.73623212,190.22,190.16,1.5711]
[1735510330502,7.18405803,190.25,190.16,3.0979]
[1735510330711,7.18405803,190.25,190.21,2.6339]
[1735510330907,7.18405803,190.25,190.21,3.06]
[1735510331105,7.18405803,190.25,190.22,2.6336]
[1735510331308,7.18405803,190.25,190.21,3.06]
[1735510331614,7.18405803,190.27,190.22,1.5449]
[1735510331807,7.18405803,190.27,190.25,2.6334]
[1735510332008,7.18405803,190.27,190.26,3.06]
[1735510332405,7.18405803,190.27,190.26,5.6932]
[1735510332808,28.73623212,190.31,190.26,3.06]
[1735510333908,13.31323073,190.29,190.22,1.5449]
[1735510334107,13.31323073,190.26,190.23,3.06]
[1735510334611,13.31323073,190.26,190.17,1.5421]
[1735510334811,13.31323073,190.26,190.18,3.06]
[1735510335813,13.31323073,190.26,190.21,2.6338]
[1735510336009,2.6329,190.29,190.18,3.06]
[1735510336316,13.31323073,190.3,190.18,3.06]
[1735510336816,13.31323073,190.3,190.22,2.6337]
[1735510337017,13.31323073,190.3,190.23,3.06]
[1735510337416,2.633,190.28,190.23,3.06]
[1735510337916,13.31323073,190.3,190.23,3.06]
[1735510338117,2.6328,190.29,190.23,3.06]
[1735510338912,2.6328,190.29,190.23,5.6936]
[1735510339517,2.6334,190.25,190.21,3.06]
[1735510339719,13.31323073,190.25,190.17,1.5421]
[1735510339914,2.6337,190.23,190.18,3.06]
[1735510340110,13.31323073,190.25,190.18,3.06]
[1735510341412,13.31323073,190.25,190.2,2.634]
[1735510342413,13.31323073,190.25,190.16,4.2056]
[1735510342615,13.31323073,190.22,190.16,4.6311]
[1735510343017,13.31323073,190.22,190.16,3.06]
[1735510344420,2.6341,190.2,190.16,3.06]
[1735510344811,2.6341,190.2,190.15,3.06]
[1735510345909,2.6341,190.2,190.14,2.6348]
[1735510346115,2.6341,190.2,190.15,3.06]
[1735510347224,15.94743073,190.19,190.12,2.635]
[1735510347416,13.31323073,190.19,190.12,3.06]
[1735510347613,13.31323073,190.19,190.11,1.512]
[1735510347614,13.31323073,190.16,190.11,1.512]
[1735510347821,13.31323073,190.16,190.11,3.06]
[1735510349022,13.31323073,190.16,190.09,1.5685]
[1735510349228,13.31323073,190.16,190.1,3.08]
[1735510349923,13.31323073,190.16,190.05,1.5738]
[1735510350123,13.31323073,190.16,190.06,3.08]
[1735510350426,15.94783073,190.16,190.1,2.6354]
[1735510351124,2.6348,190.15,190.09,2.6355]
[1735510351928,2.6348,190.15,190.09,5.7155]
[1735510353327,13.31323073,190.16,190.09,3.08]
[1735510353527,2.6349,190.14,190.09,3.08]
[1735510354029,2.6349,190.14,190.09,5.7156]
[1735510354229,2.6348,190.15,190.09,5.7156]
[1735510355629,15.94783073,190.16,190.1,2.6354]
[1735510355930,2.6346,190.16,190.1,2.6354]
[1735510357024,2.6348,190.15,190.1,2.6354]
[1735510357527,2.6349,190.14,190.09,5.7155]
[1735510357727,13.31323073,190.16,190.09,3.08]
[1735510359331,2.635,190.14,190.09,5.7155]
[1735510359529,13.31323073,190.16,190.09,3.08]
[1735510359832,2.6349,190.14,190.09,3.08]
[1735510361032,13.31323073,190.16,190.09,3.08]
[1735510361235,13.31323073,190.13,190.05,1.5738]
[1735510361539,2.6356,190.09,190.03,4.5982]
[1735510361829,2.6356,190.09,190.04,2.6363]
[1735510363424,2.6358,190.08,190.04,3.08]
[1735510366634,2.6361,190.07,190.04,3.08]
[1735510366828,13.31323073,190.1,190.04,3.08]
[1735510368233,13.31323073,190.1,190.01,5.7167]
[1735510370039,2.6361,190.06,190.01,5.7167]
[1735510370337,2.6361,190.06,190.01,2.6367]
[1735510372241,11.16139505,190.06,190.01,2.6367]
[1735510374842,8.52529505,190.06,190.01,2.6367]
[1735510375042,8.52529505,190.06,190.0,13.08979505]
[1735510375238,8.52529505,190.06,190.02,2.6366]
[1735510377240,2.6354,190.11,190.05,2.6362]
[1735510377443,7.18405803,190.12,190.0,4.5645]
[1735510377444,8.52529505,190.08,190.0,4.5645]
[1735510377643,8.52529505,190.08,190.01,8.52529505]
[1735510377842,8.52529505,190.08,190.03,2.6364]
[1735510378145,8.52529505,190.08,190.03,8.52529505]
[1735510378347,8.52529505,190.08,190.04,2.6363]
[1735510380045,8.52529505,190.08,190.03,2.6365]
[1735510380741,8.52529505,190.08,190.04,2.6364]
[1735510384445,2.636,190.07,190.0,13.08979505]
[1735510385348,8.52529505,190.06,190.0,13.08979505]
[1735510385543,8.52529505,190.06,190.02,2.6365]
[1735510393656,11.16149505,190.06,190.0,1.4845]
[1735510394062,7.18405803,190.08,190.01,8.52529505]
[1735510394262,8.52529505,190.07,190.04,2.6363]
[1735510394559,8.52529505,190.05,190.0,1.4845]
[1735510395452,8.52529505,190.05,190.01,2.6367]
[1735510396557,8.52529505,190.03,189.99,15.49895939]
[1735510396760,8.52529505,190.01,189.99,15.49895939]
[1735510397257,8.52529505,190.01,189.91,3.1863]
[1735510397463,8.52529505,189.95,189.91,3.1863]
[1735510397861,3.95688311,190.06,189.91,3.1863]
[1735510398056,8.52529505,189.97,189.91,1.5954]
[1735510398258,8.52529505,189.95,189.92,2.638]
[1735510398458,3.08,190.05,189.93,8.52529505]
[1735510398760,8.52529505,189.99,189.92,8.52529505]
[1735510399463,11.16239505,189.99,189.93,2.6378]
[1735510399862,7.18405803,190.01,189.92,8.52529505]
[1735510400164,8.52529505,190.0,189.96,2.6373]
[1735510400961,8.52529505,190.0,189.97,2.6373]
[1735510403872,8.52529505,189.98,189.96,2.6374]
[1735510404074,8.52529505,189.98,189.91,3.08]
[1735510404273,8.52529505,189.95,189.91,3.08]
[1735510405676,8.52529505,189.95,189.91,5.7181]
[1735510406476,2.6369,190.0,189.94,2.6377]
[1735510406666,8.52529505,189.98,189.94,2.6377]
[1735510407680,2.6369,190.0,189.94,2.6377]
[1735510407981,8.52529505,189.98,189.94,2.6377]
[1735510408481,8.52529505,189.98,189.93,2.6379]
[1735510409385,8.52529505,189.98,189.94,2.6377]
[1735510410082,8.52529505,189.96,189.92,2.6379]
[1735510410379,8.52529505,189.94,189.91,3.08]
[1735510410676,3.08,190.03,189.91,3.08]
[1735510410677,8.52529505,189.92,189.91,3.08]
[1735510412585,8.52529505,189.92,189.91,5.7182]
[1735510413080,8.52529505,189.92,189.91,3.08]
[1735510413378,8.52529505,189.92,189.89,4.2337]
[1735510413586,31.81623212,190.03,189.82,3.06]
[1735510413587,8.52529505,189.9,189.82,3.06]
[1735510413786,8.52529505,189.88,189.85,2.6389]
[1735510414675,8.52529505,189.88,189.85,3.06]
[1735510414881,8.52529505,189.86,189.8,1.6331]
[1735510415081,8.52529505,189.86,189.81,3.06]
[1735510415385,8.52529505,189.86,189.81,5.6995]
[1735510415581,8.52529505,189.86,189.81,3.06]
[1735510415785,8.52529505,189.87,189.81,3.06]
[1735510415976,8.52529505,189.87,189.83,2.6392]
[1735510418880,8.52529505,189.87,189.81,3.06]
[1735510419184,8.52529505,189.87,189.82,2.6394]
[1735510419686,8.52529505,189.85,189.82,2.6394]
[1735510421788,7.18405803,189.97,189.83,8.52529505]
[1735510421991,8.52529505,189.91,189.83,8.52529505]
[1735510422287,7.18405803,189.97,189.81,3.06]
[1735510422288,7.18405803,189.97,189.91,2.638]
[1735510422488,8.52529505,189.94,189.91,2.638]
[1735510423689,8.52529505,189.94,189.91,5.698]
[1735510423885,8.52529505,189.92,189.7,7.28825249]
[1735510424088,8.52529505,189.9,189.86,2.6388]
[1735510424286,8.52529505,189.9,189.86,3.06]
[1735510424489,8.52529505,189.9,189.87,3.06]
[1735510425290,8.52529505,189.89,189.86,3.06]
[1735510425596,8.52529505,189.91,189.86,3.06]
[1735510426497,8.52529505,189.91,189.86,5.6988]
[1735510427298,8.52529505,189.89,189.86,5.6988]
[1735510427894,8.52529505,189.89,189.86,3.06]
[1735510428192,8.52529505,189.87,189.85,3.06]
[1735510428689,8.52529505,189.87,189.83,3.06]
[1735510428890,8.52529505,189.85,189.83,3.06]
[1735510430688,8.52529505,189.85,189.8,3.06]
[1735510430899,8.52529505,189.83,189.8,3.06]
[1735510431602,8.52529505,189.83,189.79,2.6398]
[1735510432497,8.52529505,189.83,189.76,2.6401]
[1735510432706,8.52529505,189.83,189.77,3.06]
[1735510433097,8.52529505,189.81,189.76,2.6401]
[1735510433297,8.52529505,189.81,189.73,11.67099505]
[1735510433497,2.6397,189.8,189.74,5.7005]
[1735510433700,8.52529505,189.79,189.74,3.06]
[1735510434202,8.52529505,189.79,189.74,2.6405]
[1735510434499,8.52529505,189.8,189.74,3.06]
[1735510435402,11.16499505,189.8,189.75,3.06]
[1735510435794,11.16499505,189.8,189.74,2.6405]
[1735510436001,11.16499505,189.8,189.74,5.7005]
[1735510436204,2.6398,189.79,189.74,3.06]
[1735510436394,8.52529505,189.8,189.74,3.06]
[1735510437207,8.52529505,189.78,189.74,3.06]
[1735510437603,11.16529505,189.78,189.74,3.06]
[1735510438506,8.52529505,189.76,189.67,4.5271]
[1735510438706,8.52529505,189.76,189.71,2.6409]
[1735510440710,11.16559505,189.76,189.7,2.6411]
[1735510441108,8.52529505,189.76,189.69,11.58529505]
[1735510441305,8.52529505,189.76,189.71,2.6409]
[1735510442115,8.52529505,189.74,189.71,2.6409]
[1735510442306,8.52529505,189.74,189.7,2.6411]
[1735510444107,2.6403,189.76,189.7,2.6411]
[1735510444413,8.52529505,189.73,189.7,2.6411]
[1735510445414,8.52529505,189.73,189.69,5.7012]
[1735510445812,8.52529505,189.73,189.67,2.9731]
[1735510446014,8.52529505,189.73,189.68,3.06]
[1735510446417,8.52529505,189.73,189.68,5.7013]
[1735510446718,8.52529505,189.71,189.68,5.7013]
[1735510446921,8.52529505,189.71,189.68,3.06]
[1735510447318,2.6405,189.74,189.67,6.0331]
[1735510447516,8.52529505,189.72,189.67,6.0331]